[Event "Holiday Invitational-IM 2019"]
[Site "Charlotte"]
[Date "2019.12.27"]
[Round "2.5"]
[White "Myers, Dominique"]
[Black "Diulger, Alexey"]
[Result "0-1"]
[ECO "B06"]
[WhiteElo "2012"]
[BlackElo "2291"]
[Annotator "ChessBase"]
[PlyCount "78"]
[EventDate "2019.12.26"]
[EventType "tourn"]
[EventCountry "USA"]
[SourceTitle "playchess.com"]
[Source "ChessBase"]
[SourceQuality "1"]
[TimeControl "5400+30"]

1. e4 {[%emt 0:00:47]} g6 {[%emt 0:00:00]} 2. d4 {[%emt 0:00:10]} Bg7 {[%emt 0:00:00]} 3. Nc3 {[%emt 0:00:14]} d6 {[%emt 0:00:00]} 4. Be3 {[%emt 0:00:34]} a6 {[%emt 0:02:07]} 5. h3 {[%emt 0:00:17]} b5 {[%emt 0:01:04]} 6. g4 {[%emt 0:03:28]} Bb7 {[%emt 0:02:07]} 7. Bg2 {[%emt 0:00:11]} Nd7 {[%emt 0:00:16]} 8. Nge2 {[%emt 0:02:00]} Nb6 {[%emt 0:00:06]} 9. O-O {[%emt 0:00:40]} h5 {[%emt 0:00:16]} 10. g5 {[%emt 0:05:58]} Nc4 {[%emt 0:02:10]} 11. Bc1 {[%emt 0:00:10]} c5 {[%emt 0:02:26]} 12. b3 {[%emt 0:16:59]} cxd4 {[%emt 0:01:11]} 13. bxc4 {[%emt 0:00:31]} dxc3 {[%emt 0:00:17]} 14. cxb5 {[%emt 0:00:12]} axb5 {[%emt 0:00:26]} 15. Qd3 {[%emt 0:01:14]} Ba6 {[%emt 0:15:52]} 16. e5 {[%emt 0:13:20]} b4 {[%emt 0:03:20]} 17. Qe4 {[%emt 0:04:48]} d5 {[%emt 0:02:51]} 18. Qxd5 {[%emt 0:02:50]} Qxd5 {[%emt 0:00:12]} 19. Bxd5 {[%emt 0:00:06]} Rd8 {[%emt 0:00:34]} 20. Rd1 {[%emt 0:16:19]} Rxd5 {[%emt 0:03:36]} 21. Rxd5 {[%emt 0:00:06]} Bxe2 {[%emt 0:00:04]} 22. f4 {[%emt 0:03:55]} e6 {[%emt 0:00:34]} 23. Rc5 {[%emt 0:01:37]} Ne7 {[%emt 0:02:06]} 24. Kf2 {[%emt 0:01:48]} Bd1 {[%emt 0:01:41]} 25. a3 {[%emt 0:02:40]} O-O {[%emt 0:01:15]} 26. axb4 {[%emt 0:01:32]} Nd5 {[%emt 0:00:06]} 27. Ra2 {[%emt 0:05:05]} Nxb4 {[%emt 0:00:24]} 28. Ra4 {[%emt 0:00:34]} Nd5 {[%emt 0:00:41]} 29. Ra2 {[%emt 0:00:07]} h4 {[%emt 0:02:23]} 30. Rb5 {[%emt 0:01:48]} Rc8 {[%emt 0:01:01]} 31. Rb7 {[%emt 0:01:35]} Bf8 {[%emt 0:00:29]} 32. Ke1 {[%emt 0:00:11]} Bf3 {[%emt 0:00:19]} 33. Rd7 {[%emt 0:03:00]} Bc5 {[%emt 0:03:01]} 34. Ba3 {[%emt 0:00:53]} Be3 {[%emt 0:00:58]} 35. Be7 {[%emt 0:01:54]} Rb8 {[%emt 0:05:47]} 36. Rd8+ {[%emt 0:00:27]} Rxd8 {[%emt 0:00:05]} 37. Bxd8 {[%emt 0:00:05]} Nb4 {[%emt 0:00:05]} 38. Ra4 {[%emt 0:02:02]} Nxc2+ {[%emt 0:00:05]} 39. Kf1 {[%emt 0:00:06]} Nd4 {[%emt 0:01:08]} 0-1

[Event "Holiday Invitational-IM 2019"]
[Site "Charlotte"]
[Date "2019.12.28"]
[Round "4.2"]
[White "Furfine, Jacob"]
[Black "Diulger, Alexey"]
[Result "1/2-1/2"]
[ECO "A43"]
[WhiteElo "2302"]
[BlackElo "2291"]
[Annotator "ChessBase"]
[PlyCount "135"]
[EventDate "2019.12.26"]
[EventType "tourn"]
[EventCountry "USA"]
[SourceTitle "playchess.com"]
[Source "ChessBase"]
[SourceQuality "1"]
[TimeControl "5400+30"]

1. d4 {[%emt 0:00:00]} c5 {[%emt 0:02:50]} 2. d5 {[%emt 0:00:00]} f5 {[%emt 0:00:02]} 3. e4 {[%emt 0:03:27]} fxe4 {[%emt 0:01:17]} 4. Nc3 {[%emt 0:01:23]} Nf6 {[%emt 0:02:21]} 5. g4 {[%emt 0:05:22]} h6 {[%emt 0:17:41]} 6. Bg2 {[%emt 0:01:23]} e5 {[%emt 0:02:26]} 7. h4 {[%emt 0:05:47]} d6 {[%emt 0:06:49]} 8. g5 {[%emt 0:01:41]} Bg4 {[%emt 0:01:30]} 9. Nge2 {[%emt 0:11:06]} hxg5 {[%emt 0:02:33]} 10. hxg5 {[%emt 0:01:52]} Rxh1+ {[%emt 0:00:03]} 11. Bxh1 {[%emt 0:00:05]} Nh7 {[%emt 0:06:03]} 12. Nxe4 {[%emt 0:03:16]} Be7 {[%emt 0:00:10]} 13. Qd3 {[%emt 0:00:51]} Nf8 {[%emt 0:02:12]} 14. Bd2 {[%emt 0:05:36]} Qb6 {[%emt 0:03:33]} 15. N2c3 {[%emt 0:05:52]} Na6 {[%emt 0:01:36]} 16. Qb5+ {[%emt 0:15:01]} Bd7 {[%emt 0:03:36]} 17. Qxb6 {[%emt 0:00:41]} axb6 {[%emt 0:00:02]} 18. f4 {[%emt 0:05:02]} Ng6 {[%emt 0:04:32]} 19. fxe5 {[%emt 0:00:24]} Nxe5 {[%emt 0:00:02]} 20. O-O-O {[%emt 0:02:24]} b5 {[%emt 0:02:03]} 21. Bf4 {[%emt 0:03:03]} b4 {[%emt 0:00:15]} 22. Bxe5 {[%emt 0:01:18]} dxe5 {[%emt 0:00:09]} 23. Ne2 {[%emt 0:00:13]} Bg4 {[%emt 0:01:31]} 24. Rd2 {[%emt 0:01:34]} Bxe2 {[%emt 0:01:07]} 25. Rxe2 {[%emt 0:00:01]} O-O-O {[%emt 0:00:32]} 26. d6 {[%emt 0:03:48]} Bxd6 {[%emt 0:01:33]} 27. Nxd6+ {[%emt 0:00:04]} Rxd6 {[%emt 0:00:04]} 28. Rxe5 {[%emt 0:00:04]} b6 {[%emt 0:05:48]} 29. Re7 {[%emt 0:00:16]} Rd7 {[%emt 0:00:14]} 30. Re6 {[%emt 0:01:01]} Rf7 {[%emt 0:03:57]} 31. Be4 {[%emt 0:01:23]} Rf4 {[%emt 0:03:27]} 32. Bd3 {[%emt 0:01:02]} c4 {[%emt 0:08:09]} 33. Rc6+ {[%emt 0:01:15]} Kd7 {[%emt 0:01:09]} 34. Rxc4 {[%emt 0:00:05]} Rxc4 {[%emt 0:00:05]} 35. Bxc4 {[%emt 0:00:03]} Nc5 {[%emt 0:00:06]} 36. b3 {[%emt 0:04:30]} Ne4 {[%emt 0:03:57]} 37. g6 {[%emt 0:00:12]} Nc3 {[%emt 0:00:21]} 38. Kb2 {[%emt 0:00:26]} Nd1+ {[%emt 0:00:07]} 39. Kc1 {[%emt 0:00:05]} Nc3 {[%emt 0:00:05]} 40. Kd2 {[%emt 0:04:12]} Nxa2 {[%emt 0:00:11]} 41. Ke3 {[%emt 0:00:12]} Nc3 {[%emt 0:01:25]} 42. Kd4 {[%emt 0:00:32]} Kd6 {[%emt 0:06:39]} 43. Bd3 {[%emt 0:02:29]} b5 {[%emt 0:02:16]} 44. Bf1 {[%emt 0:00:18]} Ke6 {[%emt 0:00:38]} 45. Kc5 {[%emt 0:00:32]} Na2 {[%emt 0:00:07]} 46. Bxb5 {[%emt 0:02:43]} Kf6 {[%emt 0:00:08]} 47. Bd3 {[%emt 0:01:36]} Ke7 {[%emt 0:00:20]} 48. Kd5 {[%emt 0:00:28]} Kd7 {[%emt 0:00:26]} 49. Ke5 {[%emt 0:01:06]} Nc3 {[%emt 0:00:29]} 50. Bf5+ {[%emt 0:00:44]} Ke7 {[%emt 0:00:05]} 51. Kd4 {[%emt 0:00:23]} Kd6 {[%emt 0:01:15]} 52. Kc4 {[%emt 0:00:30]} Na2 {[%emt 0:00:24]} 53. Bd3 {[%emt 0:00:40]} Kc6 {[%emt 0:00:26]} 54. Be4+ {[%emt 0:00:08]} Kd6 {[%emt 0:00:12]} 55. Bf3 {[%emt 0:00:03]} Ke5 {[%emt 0:00:20]} 56. Bd5 {[%emt 0:01:21]} Kf5 {[%emt 0:00:53]} 57. Bf7 {[%emt 0:00:05]} Ke5 {[%emt 0:00:30]} 58. Kc5 {[%emt 0:00:07]} Kf6 {[%emt 0:00:13]} 59. Be8 {[%emt 0:01:44]} Kf5 {[%emt 0:00:14]} 60. Kd5 {[%emt 0:01:36]} Kf6 {[%emt 0:00:41]} 61. Kd6 {[%emt 0:00:17]} Nc3 {[%emt 0:00:07]} 62. Kc5 {[%emt 0:00:14]} Na2 {[%emt 0:00:02]} 63. Kd5 {[%emt 0:00:14]} Nc3+ {[%emt 0:01:08]} 64. Kd6 {[%emt 0:01:16]} Na2 {[%emt 0:00:17]} 65. Bf7 {[%emt 0:00:47]} Nc3 {[%emt 0:00:17]} 66. Kc5 {[%emt 0:00:05]} Na2 {[%emt 0:00:01]} 67. Kc4 {[%emt 0:00:08]} Kf5 {[%emt 0:00:15]} 68. Kd4 {[%emt 0:02:11]} 1/2-1/2

[Event "Holiday Invitational-IM 2019"]
[Site "Charlotte"]
[Date "2019.12.28"]
[Round "4.3"]
[White "Cervantes Landeiro, Thalia"]
[Black "Francisco, Richard"]
[Result "0-1"]
[ECO "E11"]
[WhiteElo "2289"]
[BlackElo "2281"]
[Annotator "RC"]
[PlyCount "122"]
[EventDate "2019.12.26"]
[EventType "tourn"]
[EventCountry "USA"]
[SourceTitle "playchess.com"]
[Source "ChessBase"]
[SourceQuality "1"]
[TimeControl "5400+30"]

1. d4 {[%emt 0:00:00]} Nf6 {[%emt 0:02:05]} 2. c4 {[%emt 0:00:00]} e6 {[%emt 0:00:23]} 3. Nf3 {[%emt 0:00:00]} Bb4+ {[%emt 0:01:39]} 4. Nbd2 {[%emt 0:00:00]} O-O {[%emt 0:00:28]} 5. a3 {[%emt 0:00:04]} Be7 {[%emt 0:00:07]} 6. e4 {[%emt 0:01:57]} d6 {[%emt 0:00:11]} 7. Bd3 {[%emt 0:03:57]} c5 {[%emt 0:01:53]} 8. O-O {[%emt 0:03:14]} cxd4 {[%emt 0:13:15]} 9. Nxd4 {[%emt 0:00:17]} e5 {[%emt 0:00:51]} 10. Nc2 {[%emt 0:03:57]} Nc6 {[%emt 0:01:38]} 11. b4 {[%emt 0:02:18]} Be6 {[%emt 0:03:51]} 12. Bb2 {[%emt 0:04:12]} Rc8 {[%emt 0:03:27]} 13. Ne3 {[%emt 0:04:39]} g6 {[%emt 0:09:53]} 14. Nd5 {[%emt 0:06:54]} Nh5 {[%emt 0:02:09]} 15. Be2 {[%emt 0:08:22]} Nf4 {[%emt 0:03:01]} 16. Nxf4 {[%emt 0:14:07]} exf4 {[%emt 0:00:15]} 17. Nf3 {[%emt 0:01:21]} Bf6 {[%emt 0:02:27]} 18. Qc2 {[%emt 0:08:00]} Bg4 {[%emt 0:08:23]} 19. Nd4 {[%emt 0:14:25]} Bxe2 {[%emt 0:06:46]} 20. Nxc6 {[%emt 0:04:23]} Rxc6 {[%emt 0:01:41]} 21. Bxf6 {[%emt 0:00:50]} Qxf6 {[%emt 0:00:06]} 22. Qxe2 {[%emt 0:00:04]} Rfc8 {[%emt 0:01:29]} 23. Rac1 {[%emt 0:09:15]} Qe6 {[%emt 0:05:16]} 24. Qf3 {[%emt 0:02:28]} Rxc4 {[%emt 0:01:09]} 25. Rxc4 {[%emt 0:00:36]} Rxc4 {[%emt 0:00:12]} 26. Qxf4 {[%emt 0:00:13]} Rxe4 {[%emt 0:00:48]} 27. Qd2 {[%emt 0:00:05]} Qe5 {[%emt 0:04:12]} 28. h3 {[%emt 0:00:54]} Re2 {[%emt 0:01:27]} 29. Qc1 {[%emt 0:00:25]} Kg7 {[%emt 0:02:06]} 30. Qc7 {[%emt 0:04:10]} Qe7 {[%emt 0:03:17]} 31. Qc3+ {[%emt 0:00:09]} Qf6 {[%emt 0:00:31]} 32. Qd3 {[%emt 0:00:54]} Qe5 {[%emt 0:02:40]} 33. Rd1 {[%emt 0:02:20]} Re1+ {[%emt 0:01:58]} 34. Rxe1 {[%emt 0:00:02]} Qxe1+ {[%emt 0:00:07]} 35. Kh2 {[%emt 0:00:03]} Qe5+ {[%emt 0:00:23]} 36. g3 {[%emt 0:00:23]} a6 {[%emt 0:03:06]} 37. f4 {[%emt 0:01:18]} Qe6 {[%emt 0:01:33]} 38. Kg2 {[%emt 0:00:47]} d5 {[%emt 0:00:58]} 39. Qd4+ {[%emt 0:00:58]} Kg8 {[%emt 0:00:07]} 40. Kf2 {[%emt 0:01:24]} Qe4 {[%emt 0:00:48]} 41. Qc5 {[%emt 0:00:29]} d4 {[%emt 0:01:31]} 42. Qe5 {[%emt 0:00:34]} Qc2+ {[%emt 0:06:58]} 43. Kf3 {[%emt 0:00:23]} Qc6+ {[%emt 0:02:26]} 44. Ke2 {[%emt 0:00:37]} Qc2+ {[%emt 0:01:31]} 45. Kf3 {[%emt 0:00:06]} Qd3+ {[%emt 0:00:51]} 46. Kf2 {[%emt 0:00:30]} h5 {[%emt 0:00:41]} 47. Qb8+ {[%emt 0:00:49]} Kg7 {[%emt 0:00:07]} 48. Qe5+ {[%emt 0:00:10]} Kh7 {[%emt 0:00:07]} 49. Qd5 {[%emt 0:00:38]} Qe3+ {[%emt 0:00:41]} 50. Kf1 {[%emt 0:00:27]} Kg8 {[%emt 0:00:59]} 51. Qxb7 {[%emt 0:00:48]} d3 {[%emt 0:00:32]} 52. Qc8+ {[%emt 0:00:29]} Kh7 {[%emt 0:00:26]} 53. Qd7 {[%emt 0:00:25]} Qf3+ {[%emt 0:00:10]} 54. Kg1 {[%emt 0:00:03]} Qxg3+ {[%emt 0:00:06]} 55. Kh1 {[%emt 0:00:32]} Qf3+ {[%emt 0:00:58]} 56. Kg1 {[%emt 0:00:06]} Qe3+ {[%emt 0:00:16]} 57. Kg2 {[%emt 0:00:56]} Kg7 {[%emt 0:00:14]} 58. f5 {[%emt 0:00:50]} d2 {[%emt 0:01:35]} 59. h4 {[%emt 0:00:35]} Qe2+ {[%emt 0:00:18]} 60. Kg3 {[%emt 0:00:12]} Qg4+ {[%emt 0:00:16]} 61. Kf2 {[%emt 0:00:23]} d1=Q {[%emt 0:00:19]} 0-1

[Event "Holiday Invitational-IM 2019"]
[Site "Charlotte"]
[Date "2019.12.28"]
[Round "4.4"]
[White "Myers, Dominique"]
[Black "Andrianov, Nikolai"]
[Result "1/2-1/2"]
[ECO "B36"]
[WhiteElo "2012"]
[BlackElo "2417"]
[Annotator "NA"]
[PlyCount "33"]
[EventDate "2019.12.26"]
[EventType "tourn"]
[EventCountry "USA"]
[SourceTitle "playchess.com"]
[Source "ChessBase"]
[SourceQuality "1"]
[TimeControl "5400+30"]

1. e4 {[%emt 0:02:12]} c5 {[%emt 0:00:05]} 2. Nf3 {[%emt 0:00:07]} Nc6 {[%emt 0:00:07]} 3. d4 {[%emt 0:00:05]} cxd4 {[%emt 0:00:04]} 4. Nxd4 {[%emt 0:00:07]} g6 {[%emt 0:00:07]} 5. c4 {[%emt 0:00:06]} Nf6 {[%emt 0:00:05]} 6. Nc3 {[%emt 0:00:06]} d6 {[%emt 0:00:05]} 7. f3 {[%emt 0:01:01]} Nxd4 {[%emt 0:00:25]} 8. Qxd4 {[%emt 0:00:08]} Bg7 {[%emt 0:00:04]} 9. Be3 {[%emt 0:00:06]} O-O {[%emt 0:00:09]} 10. Qd2 {[%emt 0:00:06]} Be6 {[%emt 0:00:30]} 11. Be2 {[%emt 0:00:11]} Qa5 {[%emt 0:00:18]} 12. O-O {[%emt 0:04:43]} Rfc8 {[%emt 0:00:32]} 13. b3 {[%emt 0:00:37]} a6 {[%emt 0:00:37]} 14. Rac1 {[%emt 0:00:46]} b5 {[%emt 0:00:50]} 15. Nd5 {[%emt 0:02:43]} Qxd2 {[%emt 0:00:56]} 16. Bxd2 {[%emt 0:00:07]} Nxd5 {[%emt 0:00:43]} 17. cxd5 {[%emt 0:00:07]} 1/2-1/2

[Event "Holiday Invitational-IM 2019"]
[Site "Charlotte"]
[Date "2019.12.28"]
[Round "4.5"]
[White "Bregadze, Levan"]
[Black "Ludwig, John"]
[Result "1/2-1/2"]
[ECO "B07"]
[WhiteElo "2458"]
[BlackElo "2360"]
[Annotator "ChessBase"]
[PlyCount "45"]
[EventDate "2019.12.26"]
[EventType "tourn"]
[EventCountry "USA"]
[SourceTitle "playchess.com"]
[Source "ChessBase"]
[SourceQuality "1"]
[TimeControl "5400+30"]

1. Nf3 {[%emt 0:00:00]} d6 {[%emt 0:02:24]} 2. d4 {[%emt 0:00:44]} Bg4 {[%emt 0:00:21]} 3. e4 {[%emt 0:01:58]} Nf6 {[%emt 0:00:14]} 4. Nc3 {[%emt 0:00:29]} c6 {[%emt 0:00:19]} 5. Be2 {[%emt 0:01:36]} e6 {[%emt 0:00:55]} 6. O-O {[%emt 0:01:01]} Be7 {[%emt 0:02:25]} 7. Bg5 {[%emt 0:07:12]} d5 {[%emt 0:10:40]} 8. e5 {[%emt 0:01:56]} Nfd7 {[%emt 0:02:00]} 9. Bxe7 {[%emt 0:01:21]} Qxe7 {[%emt 0:00:08]} 10. Ne1 {[%emt 0:00:43]} Bxe2 {[%emt 0:00:53]} 11. Nxe2 {[%emt 0:00:05]} c5 {[%emt 0:03:25]} 12. c3 {[%emt 0:00:12]} Nc6 {[%emt 0:03:16]} 13. a3 {[%emt 0:07:36]} c4 {[%emt 0:06:21]} 14. f4 {[%emt 0:01:36]} g6 {[%emt 0:00:10]} 15. Nf3 {[%emt 0:02:35]} h5 {[%emt 0:03:51]} 16. Rb1 {[%emt 0:06:02]} Na5 {[%emt 0:08:33]} 17. Qc2 {[%emt 0:03:41]} Nb3 {[%emt 0:04:31]} 18. Nc1 {[%emt 0:01:53]} Nxc1 {[%emt 0:00:38]} 19. Rbxc1 {[%emt 0:00:11]} Nb6 {[%emt 0:04:59]} 20. g3 {[%emt 0:00:40]} Qd7 {[%emt 0:05:17]} 21. h3 {[%emt 0:10:40]} Qa4 {[%emt 0:00:13]} 22. Qf2 {[%emt 0:00:12]} Nc8 {[%emt 0:00:16]} 23. Ng5 {[%emt 0:01:51]} 1/2-1/2

[Event "Holiday Invitational-IM 2019"]
[Site "Charlotte"]
[Date "2019.12.29"]
[Round "5.3"]
[White "Ludwig, John"]
[Black "Myers, Dominique"]
[Result "1-0"]
[ECO "C68"]
[WhiteElo "2360"]
[BlackElo "2012"]
[Annotator "RC"]
[PlyCount "83"]
[EventDate "2019.12.26"]
[EventType "tourn"]
[EventCountry "USA"]
[SourceTitle "playchess.com"]
[Source "ChessBase"]
[SourceQuality "1"]
[TimeControl "5400+30"]

1. e4 {[%emt 0:00:00]} e5 {[%emt 0:00:19]} 2. Nf3 {[%emt 0:00:00]} Nc6 {[%emt 0:00:10]} 3. Bb5 {[%emt 0:00:00]} a6 {[%emt 0:00:10]} 4. Bxc6 {[%emt 0:00:07]} dxc6 {[%emt 0:00:07]} 5. Nc3 {[%emt 0:00:16]} f6 {[%emt 0:02:34]} 6. d4 {[%emt 0:00:13]} Bg4 {[%emt 0:01:04]} 7. dxe5 {[%emt 0:03:12]} Qxd1+ {[%emt 0:00:15]} 8. Nxd1 {[%emt 0:00:10]} O-O-O {[%emt 0:01:11]} 9. exf6 {[%emt 0:08:38]} Nxf6 {[%emt 0:00:31]} 10. Ne3 {[%emt 0:00:33]} Bxf3 {[%emt 0:05:06]} 11. gxf3 {[%emt 0:00:07]} Nh5 {[%emt 0:01:14]} 12. Nc4 {[%emt 0:03:03]} Be7 {[%emt 0:01:35]} 13. Be3 {[%emt 0:06:22]} Rhf8 {[%emt 0:00:57]} 14. Ke2 {[%emt 0:00:43]} Bf6 {[%emt 0:05:15]} 15. c3 {[%emt 0:02:39]} Be7 {[%emt 0:03:25]} 16. a4 {[%emt 0:08:32]} g5 {[%emt 0:01:47]} 17. b4 {[%emt 0:04:37]} b6 {[%emt 0:03:38]} 18. a5 {[%emt 0:00:45]} b5 {[%emt 0:00:34]} 19. Nd2 {[%emt 0:01:25]} h6 {[%emt 0:00:55]} 20. Nb3 {[%emt 0:01:48]} Kb7 {[%emt 0:08:28]} 21. Nd4 {[%emt 0:03:19]} Rde8 {[%emt 0:10:48]} 22. Nf5 {[%emt 0:15:50]} Rxf5 {[%emt 0:00:53]} 23. exf5 {[%emt 0:00:08]} Ng7 {[%emt 0:00:13]} 24. Rad1 {[%emt 0:03:08]} Nxf5 {[%emt 0:00:22]} 25. Rd3 {[%emt 0:01:27]} c5 {[%emt 0:05:10]} 26. bxc5 {[%emt 0:01:58]} Bxc5 {[%emt 0:00:54]} 27. Re1 {[%emt 0:08:19]} Bd6 {[%emt 0:02:17]} 28. h3 {[%emt 0:02:29]} Nh4 {[%emt 0:00:40]} 29. Rb1 {[%emt 0:01:23]} Ng6 {[%emt 0:04:48]} 30. Rd4 {[%emt 0:03:07]} Kc8 {[%emt 0:09:39]} 31. Re4 {[%emt 0:02:14]} Rf8 {[%emt 0:02:24]} 32. c4 {[%emt 0:05:01]} bxc4 {[%emt 0:00:41]} 33. Rxc4 {[%emt 0:00:08]} Rf5 {[%emt 0:01:30]} 34. Rb6 {[%emt 0:01:35]} Kd7 {[%emt 0:08:18]} 35. Rxa6 {[%emt 0:00:11]} Rb5 {[%emt 0:00:42]} 36. Ra8 {[%emt 0:02:06]} Rb2+ {[%emt 0:00:21]} 37. Kd1 {[%emt 0:00:15]} Ra2 {[%emt 0:00:41]} 38. a6 {[%emt 0:00:16]} Ne5 {[%emt 0:00:24]} 39. Rc2 {[%emt 0:00:23]} Ra1+ {[%emt 0:01:47]} 40. Rc1 {[%emt 0:00:07]} Ra2 {[%emt 0:04:14]} 41. a7 {[%emt 0:00:27]} c5 {[%emt 0:00:44]} 42. Rh8 {[%emt 0:01:00]} 1-0

[Event "Holiday Invitational-IM 2019"]
[Site "Charlotte"]
[Date "2019.12.29"]
[Round "5.4"]
[White "Diulger, Alexey"]
[Black "Cervantes Landeiro, Thalia"]
[Result "1-0"]
[ECO "A30"]
[WhiteElo "2291"]
[BlackElo "2289"]
[Annotator "RC"]
[PlyCount "81"]
[EventDate "2019.12.26"]
[EventType "tourn"]
[EventCountry "USA"]
[SourceTitle "playchess.com"]
[Source "ChessBase"]
[SourceQuality "1"]
[TimeControl "5400+30"]

1. Nf3 {[%emt 0:03:14]} d5 {[%emt 0:00:00]} 2. g3 {[%emt 0:00:08]} Nf6 {[%emt 0:00:00]} 3. Bg2 {[%emt 0:00:03]} g6 {[%emt 0:00:00]} 4. b3 {[%emt 0:00:07]} Bg7 {[%emt 0:00:00]} 5. Bb2 {[%emt 0:00:06]} c5 {[%emt 0:00:14]} 6. O-O {[%emt 0:00:48]} O-O {[%emt 0:00:12]} 7. d3 {[%emt 0:01:26]} b6 {[%emt 0:10:27]} 8. c4 {[%emt 0:00:47]} Bb7 {[%emt 0:00:43]} 9. cxd5 {[%emt 0:00:15]} Bxd5 {[%emt 0:00:12]} 10. Nbd2 {[%emt 0:01:25]} Bb7 {[%emt 0:04:59]} 11. Rc1 {[%emt 0:00:36]} Nc6 {[%emt 0:01:04]} 12. Nc4 {[%emt 0:00:28]} Nd4 {[%emt 0:08:36]} 13. Nxd4 {[%emt 0:03:29]} Bxg2 {[%emt 0:00:12]} 14. Ne6 {[%emt 0:01:03]} fxe6 {[%emt 0:05:31]} 15. Kxg2 {[%emt 0:00:02]} Bh6 {[%emt 0:04:25]} 16. Rc2 {[%emt 0:02:19]} Qd5+ {[%emt 0:02:29]} 17. e4 {[%emt 0:01:03]} Qb7 {[%emt 0:01:57]} 18. f4 {[%emt 0:03:51]} Rfd8 {[%emt 0:12:05]} 19. Qf3 {[%emt 0:00:27]} Rac8 {[%emt 0:06:10]} 20. h4 {[%emt 0:06:27]} Bg7 {[%emt 0:07:18]} 21. Rd1 {[%emt 0:12:14]} b5 {[%emt 0:04:17]} 22. Ne3 {[%emt 0:01:14]} a5 {[%emt 0:02:36]} 23. Ba3 {[%emt 0:02:40]} e5 {[%emt 0:07:36]} 24. fxe5 {[%emt 0:00:31]} Nd7 {[%emt 0:00:32]} 25. e6 {[%emt 0:04:24]} Ne5 {[%emt 0:00:25]} 26. Qe2 {[%emt 0:00:48]} Nxd3 {[%emt 0:03:47]} 27. Nd5 {[%emt 0:01:03]} Nb4 {[%emt 0:01:17]} 28. Bxb4 {[%emt 0:00:40]} axb4 {[%emt 0:00:18]} 29. Qf1 {[%emt 0:01:38]} Rf8 {[%emt 0:00:40]} 30. Rf2 {[%emt 0:00:07]} c4 {[%emt 0:07:24]} 31. bxc4 {[%emt 0:01:11]} Rxf2+ {[%emt 0:01:18]} 32. Qxf2 {[%emt 0:00:02]} bxc4 {[%emt 0:00:12]} 33. Qf7+ {[%emt 0:00:34]} Kh8 {[%emt 0:00:01]} 34. Qxe7 {[%emt 0:01:43]} Qa8 {[%emt 0:01:07]} 35. Kh3 {[%emt 0:02:11]} c3 {[%emt 0:04:49]} 36. Nb6 {[%emt 0:01:59]} Re8 {[%emt 0:04:31]} 37. Nxa8 {[%emt 0:08:59]} Rxe7 {[%emt 0:00:02]} 38. Rd8+ {[%emt 0:00:05]} Bf8 {[%emt 0:00:05]} 39. Rxf8+ {[%emt 0:00:07]} Kg7 {[%emt 0:00:04]} 40. Rc8 {[%emt 0:00:12]} Rxe6 {[%emt 0:00:51]} 41. Rc4 {[%emt 0:00:54]} 1-0

[Event "Holiday Invitational-IM 2019"]
[Site "Charlotte"]
[Date "2019.12.29"]
[Round "6.1"]
[White "Kolay, Alex"]
[Black "Diulger, Alexey"]
[Result "1/2-1/2"]
[ECO "A41"]
[WhiteElo "2261"]
[BlackElo "2291"]
[Annotator "NA"]
[PlyCount "32"]
[EventDate "2019.12.26"]
[EventType "tourn"]
[EventCountry "USA"]
[SourceTitle "playchess.com"]
[Source "ChessBase"]
[SourceQuality "1"]
[TimeControl "5400+30"]

1. d4 {[%emt 0:00:00]} g6 {[%emt 0:00:00]} 2. c4 {[%emt 0:00:00]} Bg7 {[%emt 0:00:00]} 3. Nf3 {[%emt 0:00:00]} d6 {[%emt 0:00:00]} 4. Nc3 {[%emt 0:00:00]} Bg4 {[%emt 0:01:16]} 5. e3 {[%emt 0:19:52]} c6 {[%emt 0:00:27]} 6. Be2 {[%emt 0:00:42]} e6 {[%emt 0:00:44]} 7. O-O {[%emt 0:01:21]} d5 {[%emt 0:02:04]} 8. Qb3 {[%emt 0:05:10]} Qb6 {[%emt 0:01:24]} 9. Na4 {[%emt 0:06:46]} Qxb3 {[%emt 0:00:35]} 10. axb3 {[%emt 0:00:08]} Nd7 {[%emt 0:00:05]} 11. cxd5 {[%emt 0:00:43]} exd5 {[%emt 0:01:04]} 12. b4 {[%emt 0:01:30]} a6 {[%emt 0:17:24]} 13. h3 {[%emt 0:07:41]} Bxf3 {[%emt 0:01:01]} 14. Bxf3 {[%emt 0:00:01]} h5 {[%emt 0:00:37]} 15. Nc5 {[%emt 0:04:09]} Nxc5 {[%emt 0:00:25]} 16. bxc5 {[%emt 0:00:10]} f5 {[%emt 0:00:29]} 1/2-1/2

[Event "Holiday Invitational-IM 2019"]
[Site "Charlotte"]
[Date "2019.12.29"]
[Round "6.2"]
[White "Cervantes Landeiro, Thalia"]
[Black "Andrianov, Nikolai"]
[Result "1/2-1/2"]
[ECO "D94"]
[WhiteElo "2289"]
[BlackElo "2417"]
[Annotator "NA"]
[PlyCount "91"]
[EventDate "2019.12.26"]
[EventType "tourn"]
[EventCountry "USA"]
[SourceTitle "playchess.com"]
[Source "ChessBase"]
[SourceQuality "1"]
[TimeControl "5400+30"]

1. d4 {[%emt 0:00:00]} d5 {[%emt 0:00:25]} 2. c4 {[%emt 0:00:00]} c6 {[%emt 0:00:03]} 3. Nf3 {[%emt 0:00:00]} Nf6 {[%emt 0:00:04]} 4. e3 {[%emt 0:00:00]} g6 {[%emt 0:00:28]} 5. Nc3 {[%emt 0:00:06]} Bg7 {[%emt 0:00:06]} 6. Be2 {[%emt 0:00:43]} O-O {[%emt 0:00:20]} 7. O-O {[%emt 0:03:33]} dxc4 {[%emt 0:01:52]} 8. Bxc4 {[%emt 0:00:09]} Bg4 {[%emt 0:00:10]} 9. h3 {[%emt 0:01:23]} Bxf3 {[%emt 0:00:07]} 10. Qxf3 {[%emt 0:00:06]} Nbd7 {[%emt 0:00:40]} 11. Rd1 {[%emt 0:03:00]} e5 {[%emt 0:03:31]} 12. d5 {[%emt 0:00:10]} e4 {[%emt 0:00:34]} 13. Nxe4 {[%emt 0:00:14]} Nxe4 {[%emt 0:00:19]} 14. Qxe4 {[%emt 0:00:10]} Nf6 {[%emt 0:00:07]} 15. Qf3 {[%emt 0:04:32]} cxd5 {[%emt 0:00:07]} 16. Bxd5 {[%emt 0:11:11]} Nxd5 {[%emt 0:00:17]} 17. Rxd5 {[%emt 0:22:24]} Qf6 {[%emt 0:03:06]} 18. Qxf6 {[%emt 0:00:32]} Bxf6 {[%emt 0:00:01]} 19. Kf1 {[%emt 0:00:24]} Rfd8 {[%emt 0:04:01]} 20. Rxd8+ {[%emt 0:00:26]} Rxd8 {[%emt 0:00:02]} 21. Ke2 {[%emt 0:00:12]} Rc8 {[%emt 0:00:05]} 22. Bd2 {[%emt 0:00:45]} Rc2 {[%emt 0:00:26]} 23. Rb1 {[%emt 0:00:11]} Rxb2 {[%emt 0:00:19]} 24. Rxb2 {[%emt 0:00:07]} Bxb2 {[%emt 0:00:01]} 25. Kd3 {[%emt 0:00:08]} Kf8 {[%emt 0:02:19]} 26. Kc4 {[%emt 0:00:28]} Ke7 {[%emt 0:00:08]} 27. Kd5 {[%emt 0:00:12]} h5 {[%emt 0:00:25]} 28. e4 {[%emt 0:01:56]} Kd7 {[%emt 0:00:39]} 29. Be3 {[%emt 0:01:25]} a6 {[%emt 0:00:54]} 30. f3 {[%emt 0:06:14]} Ba3 {[%emt 0:02:08]} 31. g4 {[%emt 0:03:25]} hxg4 {[%emt 0:00:24]} 32. hxg4 {[%emt 0:09:01]} Be7 {[%emt 0:03:22]} 33. f4 {[%emt 0:01:02]} Bd6 {[%emt 0:02:30]} 34. Bd2 {[%emt 0:07:04]} Be7 {[%emt 0:03:15]} 35. Be3 {[%emt 0:02:25]} Bd6 {[%emt 0:00:17]} 36. f5 {[%emt 0:00:11]} gxf5 {[%emt 0:00:13]} 37. exf5 {[%emt 0:00:14]} f6 {[%emt 0:02:31]} 38. Bd4 {[%emt 0:02:27]} Be7 {[%emt 0:00:28]} 39. Bc3 {[%emt 0:00:58]} Bd8 {[%emt 0:02:07]} 40. Bb4 {[%emt 0:05:35]} b5 {[%emt 0:18:27]} 41. Bc3 {[%emt 0:04:36]} a5 {[%emt 0:01:35]} 42. Kc5 {[%emt 0:02:01]} b4 {[%emt 0:00:29]} 43. Bd2 {[%emt 0:02:05]} Be7+ {[%emt 0:00:57]} 44. Kb5 {[%emt 0:00:17]} Bd8 {[%emt 0:00:12]} 45. Bf4 {[%emt 0:02:59]} Ke8 {[%emt 0:00:45]} 46. Bd2 {[%emt 0:07:59]} 1/2-1/2